bitfinex/quotes_BTCUSD_20251219
["timestamp","ask_amount","ask_price","bid_price","bid_amount"]
[1766180258419,0.00568,88129.0,88120.0,0.17688]
[1766180258979,0.017027,88129.0,88120.0,0.17688]
[1766180259869,0.00568,88129.0,88120.0,0.17688]
[1766180260182,0.00568,88129.0,88119.0,0.38706]
[1766180262970,0.18583,88129.0,88119.0,0.38706]
[1766180263135,0.18583,88129.0,88116.0,0.17688]
[1766180263338,0.197177,88129.0,88116.0,0.17688]
[1766180263553,0.18583,88129.0,88116.0,0.17688]
[1766180264336,0.18583,88129.0,88116.0,0.01134867]
[1766180264544,0.185281,88129.0,88119.0,0.01134829]
[1766180264744,0.185281,88129.0,88120.0,0.01134816]
[1766180265158,0.185281,88129.0,88119.0,0.17688]
[1766180270945,0.185281,88129.0,88119.0,0.18822829]
[1766180271266,0.185281,88129.0,88120.0,0.17688]
[1766180276642,0.005131,88129.0,88120.0,0.17688]
[1766180276781,1e-06,88129.0,88125.0,0.38706]
[1766180277005,1e-06,88129.0,88128.0,0.56394]
[1766180277395,0.03572517,88146.0,88129.0,0.17688]
[1766180277396,0.03409449,88137.0,88129.0,0.17688]
[1766180277618,0.00568,88138.0,88133.0,0.18822648]
[1766180277825,0.00568,88143.0,88137.0,0.17688]
[1766180278249,0.00568,88143.0,88137.0,0.38706]
[1766180278422,0.00568,88143.0,88138.0,0.17688]
[1766180281801,0.00568,88143.0,88132.0,0.38706]
[1766180282026,0.16924,88142.0,88131.0,0.00568]
[1766180282221,0.16924,88142.0,88131.0,0.18256]
[1766180282423,0.16924,88142.0,88131.0,0.39274]
[1766180282628,0.16924,88142.0,88132.0,0.17688]
[1766180284519,0.16924,88142.0,88125.0,0.01134751]
[1766180284646,0.00568,88143.0,88127.0,0.37597]
[1766180284845,0.00568,88143.0,88127.0,0.38731726]
[1766180285064,0.00568,88143.0,88128.0,0.16837]
[1766180285266,0.00568,88143.0,88129.0,0.16837]
[1766180285856,0.00568,88143.0,88129.0,0.54434]
[1766180286299,0.00568,88143.0,88130.0,0.16837]
[1766180286618,0.00568,88143.0,88131.0,0.00568]
[1766180287905,0.16784,88143.0,88131.0,0.00568]
[1766180292349,0.1791852,88143.0,88131.0,0.00568]
[1766180292550,0.16784,88143.0,88131.0,0.00568]
[1766180297526,0.1791852,88143.0,88131.0,0.00568]
[1766180298417,0.16784,88143.0,88131.0,0.00568]
[1766180299448,0.16784,88143.0,88131.0,0.1599]
[1766180301992,0.1791852,88143.0,88131.0,0.1599]
[1766180302411,0.12687,88142.0,88131.0,0.00568]
[1766180303336,0.13821532,88142.0,88131.0,0.00568]
[1766180303708,0.12687,88142.0,88131.0,0.00568]
[1766180304331,0.13821532,88142.0,88131.0,0.00568]
[1766180304941,0.0170252,88143.0,88111.0,0.51354]
[1766180304942,0.1229,88130.0,88111.0,0.51354]
[1766180305105,0.13992687,88130.0,88113.0,0.15422]
[1766180305311,0.12095,88129.0,88113.0,0.15422]
[1766180305534,0.12095,88129.0,88112.0,0.00568]
[1766180305535,0.12095,88129.0,88114.0,0.35932]
[1766180305739,0.12095,88129.0,88116.0,0.15422]
[1766180306269,0.01134726,88127.0,88116.0,0.15422]
[1766180306439,0.13036713,88128.0,88116.0,0.15422]
[1766180306790,0.01134726,88127.0,88116.0,0.15422]
[1766180307086,0.01134738,88126.0,88116.0,0.15422]
[1766180307286,0.12846726,88127.0,88116.0,0.15422]
[1766180307493,0.11712,88127.0,88116.0,0.15422]
[1766180308675,0.12846726,88127.0,88116.0,0.15422]
[1766180308852,0.11712,88127.0,88116.0,0.15422]
[1766180310053,0.00568,88130.0,88119.0,0.51354]
[1766180311448,0.00568,88130.0,88120.0,0.15422]
[1766180313974,0.00568,88133.0,88128.0,0.153671]
[1766180314174,0.00568,88133.0,88127.0,0.35932]
[1766180315261,0.005131,88133.0,88127.0,0.35932]
[1766180316070,0.005131,88133.0,88127.0,0.50552]
[1766180316265,0.005131,88133.0,88127.0,0.35932]
[1766180316583,0.005131,88133.0,88128.0,0.1462]
[1766180317202,0.005131,88133.0,88129.0,0.1462]
[1766180317748,0.03409251,88143.0,88129.0,0.017027]
[1766180317953,0.00568,88142.0,88129.0,0.00568]
[1766180318152,0.00568,88142.0,88134.0,0.1462]
[1766180319199,0.00568,88142.0,88129.0,0.15188]
[1766180319367,0.00568,88142.0,88130.0,0.1462]
[1766180319877,0.00568,88142.0,88131.0,0.34146]
[1766180320080,0.00568,88142.0,88132.0,0.1462]
[1766180323663,0.09188,88142.0,88131.0,0.34146]
[1766180325204,0.09188,88142.0,88129.0,0.00568]
[1766180325612,0.09188,88142.0,88129.0,0.15188]
[1766180327300,0.09188,88142.0,88129.0,0.163227]
[1766180327506,0.09188,88142.0,88129.0,0.15188]
[1766180328179,0.09188,88142.0,88129.0,0.163227]
[1766180328381,0.09188,88142.0,88130.0,0.01134687]
[1766180328558,0.09188,88142.0,88129.0,0.163227]
[1766180329120,0.09188,88142.0,88130.0,0.01134687]
[1766180329328,0.09188,88142.0,88129.0,0.15188]
[1766180329531,0.09188,88142.0,88129.0,0.163227]
[1766180330051,0.09188,88142.0,88130.0,0.1462]
[1766180331603,0.09188,88142.0,88131.0,0.01134674]
[1766180331824,0.09188,88142.0,88131.0,0.15754674]
[1766180332264,0.09188,88142.0,88132.0,0.01134661]
[1766180332562,0.09188,88142.0,88131.0,0.1462]
[1766180335439,0.00568,88142.0,88132.0,0.34146]
[1766180335669,0.00568,88142.0,88133.0,0.1462]
[1766180338994,0.00568,88142.0,88132.0,0.34146]
[1766180339200,0.00568,88142.0,88132.0,0.48766]
[1766180340523,0.06219,88141.0,88129.0,0.00568]
[1766180340774,0.000549,88132.0,88130.0,0.00568]
[1766180340974,0.06219,88135.0,88126.0,0.00568]
[1766180341527,0.06219,88135.0,88124.0,0.1462]
[1766180341898,0.06219,88135.0,88125.0,0.16322751]
[1766180342072,0.00568,88142.0,88128.0,0.01134713]
[1766180342284,0.04833,88141.0,88127.0,0.15754726]
[1766180342648,0.04833,88141.0,88128.0,0.01134713]
[1766180342867,0.04833,88141.0,88127.0,0.15754726]
[1766180343067,0.04833,88141.0,88128.0,0.01134713]
[1766180343283,0.04833,88141.0,88127.0,0.15754726]
[1766180343483,0.04833,88141.0,88128.0,0.01134713]
[1766180344165,0.04833,88141.0,88127.0,0.15754726]
[1766180344501,0.04833,88141.0,88127.0,0.1462]
[1766180345092,0.04833,88141.0,88127.0,0.15754726]
[1766180345292,0.04833,88141.0,88127.0,0.1462]
[1766180345503,0.04833,88141.0,88127.0,0.15754726]
[1766180345714,0.04833,88141.0,88127.0,0.1462]
[1766180347814,0.01702532,88142.0,88127.0,0.1462]
[1766180347963,0.041,88140.0,88127.0,0.1462]
[1766180348193,0.041,88140.0,88125.0,0.34714]
[1766180348614,0.03969,88140.0,88125.0,0.34714]
[1766180348785,0.03969,88139.0,88125.0,0.34714]
[1766180351974,0.03969,88139.0,88126.0,0.13802]
[1766180353781,0.033919,88126.0,88116.0,0.01134867]
[1766180354087,0.03337,88126.0,88117.0,0.01134854]
[1766180355080,0.00568,88130.0,88121.0,0.01134803]
[1766180355287,0.03095,88133.0,88127.0,0.01134726]
[1766180355488,0.03095,88133.0,88124.0,0.01134764]
[1766180355888,0.03095,88133.0,88125.0,0.01134751]
[1766180356093,0.03095,88133.0,88126.0,0.01134738]
[1766180356286,0.03095,88133.0,88125.0,0.01134751]
[1766180356783,0.03095,88133.0,88124.0,0.01134764]
[1766180357355,0.03095,88133.0,88123.0,0.01134777]
[1766180357529,0.03095,88133.0,88119.0,0.32472829]
[1766180357675,0.03095,88133.0,88121.0,0.14936803]
[1766180358331,0.03095,88133.0,88121.0,0.13802]
[1766180358549,0.03095,88133.0,88121.0,0.14936803]
[1766180358710,0.03095,88133.0,88121.0,0.13802]
[1766180358912,0.03095,88133.0,88122.0,0.0113479]
[1766180361745,0.03095,88133.0,88121.0,0.14936803]
[1766180361926,0.03095,88133.0,88122.0,0.0113479]
[1766180362301,0.03095,88133.0,88121.0,0.14936803]
[1766180362586,0.03095,88133.0,88122.0,0.0113479]
[1766180363281,0.03095,88133.0,88121.0,0.14936803]
[1766180363781,0.03095,88133.0,88122.0,0.0113479]
[1766180363985,0.03095,88133.0,88121.0,0.14936803]
[1766180364349,0.03095,88133.0,88121.0,0.15504803]
[1766180365374,0.03095,88133.0,88121.0,0.1437]
[1766180365552,0.03095,88133.0,88121.0,0.15504803]
[1766180367211,0.03095,88133.0,88122.0,0.0113479]
[1766180367569,0.03095,88133.0,88121.0,0.15504803]
[1766180368516,0.03095,88133.0,88121.0,0.1437]
[1766180368806,0.03095,88133.0,88121.0,0.15504803]
[1766180369026,0.03095,88133.0,88121.0,0.00568]
[1766180369226,0.01361061,88132.0,88121.0,0.00568]
[1766180369409,0.01442,88131.0,88121.0,0.00568]
[1766180374596,0.01442,88131.0,88121.0,0.01702803]
[1766180374828,0.01442,88131.0,88122.0,0.0113479]
[1766180375169,0.01442,88131.0,88121.0,0.00568]
[1766180377058,0.01442,88131.0,88121.0,0.005131]
[1766180378733,0.00489,88131.0,88121.0,0.005131]
[1766180378942,0.00489,88130.0,88121.0,0.005131]
[1766180398426,0.01134764,88124.0,88107.0,0.1393]
[1766180398640,0.00055,88107.0,88098.0,0.00024809]
[1766180398843,0.00055,88107.0,88102.0,6.1e-07]
[1766180399054,0.00568,88112.0,88098.0,0.00024809]
[1766180399261,0.01134944,88110.0,88098.0,0.00024809]
[1766180399480,0.01134996,88106.0,88089.0,0.1393]
[1766180399656,0.000248,88098.0,88090.0,0.00568]
[1766180400009,0.01135048,88102.0,88090.0,0.00568]
[1766180400221,0.01135022,88104.0,88090.0,0.00568]
[1766180400649,0.01135035,88103.0,88090.0,0.00568]
[1766180401058,0.01703009,88105.0,88090.0,0.00568]
[1766180401267,0.00568,88105.0,88090.0,0.00568]
[1766180401479,0.01703009,88105.0,88090.0,0.00568]
[1766180401778,0.00568,88105.0,88090.0,0.00568]
[1766180402008,0.00568,88105.0,88092.0,0.01135176]
[1766180402160,0.005131,88105.0,88094.0,0.01135151]
[1766180402343,0.005131,88105.0,88092.0,0.01135176]
[1766180403359,0.03410515,88111.0,88098.0,0.01135099]
[1766180403540,0.00568,88110.0,88100.0,0.1393]
[1766180403741,0.00568,88110.0,88099.0,0.29717]
[1766180404124,0.00568,88110.0,88098.0,0.01135099]
[1766180405185,0.00568,88110.0,88096.0,0.15065125]
[1766180405386,0.00568,88110.0,88097.0,0.01135112]
[1766180405796,0.00568,88110.0,88096.0,0.15065125]
[1766180406372,0.00568,88110.0,88080.0,0.77479646]
[1766180406588,0.00568,88110.0,87915.0,0.65425946]
[1766180406589,0.01135628,88057.0,88035.0,0.28491]
[1766180406818,0.01135666,88054.0,88033.0,0.12386]
[1766180407015,0.01361061,88043.0,88033.0,0.12386]
[1766180407166,0.00572,88042.0,88033.0,0.12386]
[1766180407518,0.01135834,88041.0,88033.0,0.12386]
[1766180407650,0.000149,88038.0,88033.0,0.12386]
[1766180407851,0.00572,88039.0,88033.0,0.12386]
[1766180408462,0.0170786,88039.0,88033.0,0.12386]
[1766180408868,0.00572,88039.0,88033.0,0.12386]
[1766180409068,0.0045505,88053.0,88035.0,0.28491]
[1766180409312,0.05678527,88051.0,88036.0,0.12346]
[1766180409511,0.01135744,88048.0,88036.0,0.12346]
[1766180409670,0.01135757,88047.0,88037.0,0.12346]
[1766180409866,0.00572,88046.0,88037.0,0.12346]
[1766180410110,0.00572,88045.0,88037.0,0.12346]
[1766180410272,0.01707782,88045.0,88037.0,0.12346]
[1766180410468,0.000149,88037.0,88033.0,0.0004]
[1766180410712,0.000149,88037.0,88020.0,0.77479646]
[1766180410713,0.01135924,88034.0,88024.0,0.12346]
[1766180410852,0.01135924,88034.0,88022.0,0.00612]
[1766180411096,0.01135924,88034.0,88022.0,0.12958]
[1766180411498,0.01135898,88036.0,88023.0,0.12346]
[1766180411725,0.00572,88037.0,88022.0,0.29103]
[1766180411726,0.00572,88037.0,88022.0,0.00612]
[1766180411931,0.00572,88037.0,88036.0,0.00025]
[1766180412132,0.00547,88037.0,88028.0,0.12346]
[1766180412467,0.00547,88037.0,88030.0,0.40837]
[1766180412673,0.00547,88037.0,88030.0,0.28491]
[1766180412876,0.00547,88037.0,88036.0,0.00167334]
[1766180414804,0.00547,88037.0,88036.0,0.00112434]
[1766180415926,0.00572,88037.0,88036.0,0.00112434]
[1766180418479,0.01135615,88058.0,88036.0,0.00112434]
[1766180418698,0.022715,88054.0,88043.0,0.001099]
[1766180418909,0.0625014,88057.0,88042.0,0.12346]
[1766180418910,0.01135653,88055.0,88042.0,0.12346]
[1766180419112,0.01135679,88053.0,88042.0,0.12346]
[1766180419318,0.01135692,88052.0,88042.0,0.12346]
[1766180419521,0.01135731,88049.0,88042.0,0.12346]
[1766180419752,0.01135718,88050.0,88042.0,0.12346]
[1766180419954,0.01707705,88051.0,88042.0,0.12346]
[1766180420154,0.00572,88051.0,88042.0,0.12346]
[1766180420373,0.01707705,88051.0,88042.0,0.12346]
[1766180420505,0.01135731,88049.0,88041.0,0.28491]
[1766180421140,0.01135718,88050.0,88041.0,0.28491]
[1766180421358,0.00572,88051.0,88041.0,0.28491]
[1766180421712,0.01135731,88049.0,88041.0,0.28491]
[1766180422348,0.01135718,88050.0,88041.0,0.28491]
[1766180423154,0.00572,88051.0,88041.0,0.28491]
[1766180423314,0.00572,88051.0,88042.0,0.13728]
[1766180423518,0.005171,88051.0,88042.0,0.13728]
[1766180424230,0.005171,88051.0,88050.0,0.00069055]
[1766180424689,0.005171,88051.0,88050.0,0.00014155]
[1766180434994,0.01361061,88059.0,88051.0,0.12462]
[1766180434995,0.00572,88052.0,88051.0,0.12462]
[1766180435348,0.004621,88052.0,88051.0,0.12462]
[1766180436083,0.02433512,88058.0,88051.0,0.12462]
[1766180436301,0.03622589,88057.0,88051.0,0.06318862]
[1766180436512,0.03050589,88056.0,88051.0,0.06318862]
[1766180436717,0.02433512,88055.0,88051.0,0.06318862]
[1766180436921,0.02433512,88054.0,88051.0,0.06318862]
[1766180437124,0.00572,88057.0,88051.0,0.06318862]
[1766180437125,0.02433512,88053.0,88051.0,0.06318862]
[1766180437321,0.02433512,88052.0,88051.0,0.06318862]
[1766180438362,0.02433512,88056.0,88051.0,0.06318862]
[1766180438558,0.02433512,88055.0,88051.0,0.06318862]
[1766180438769,0.02433512,88054.0,88051.0,0.06318862]
[1766180439067,0.02433512,88053.0,88051.0,0.06318862]
[1766180439221,0.02433512,88056.0,88051.0,0.06318862]
[1766180439575,0.02433512,88055.0,88051.0,0.06318862]
[1766180439739,0.02433512,88054.0,88051.0,0.06318862]
[1766180439905,0.02433512,88056.0,88051.0,0.06318862]
[1766180440111,0.02433512,88055.0,88051.0,0.06318862]
[1766180440471,0.02433512,88056.0,88051.0,0.06318862]
[1766180440832,0.02433512,88055.0,88051.0,0.06318862]
[1766180441031,0.02433512,88056.0,88051.0,0.06318862]
[1766180441233,0.00572,88057.0,88051.0,0.06318862]
[1766180445546,0.00572,88057.0,88052.0,0.40491]
[1766180447199,0.00572,88057.0,88052.0,0.28029]
[1766180447677,0.00572,88057.0,88048.0,0.12462]
[1766180449924,0.00572,88057.0,88049.0,0.12462]
[1766180451105,0.0113564,88056.0,88046.0,0.00026567]
[1766180451312,0.000265,88046.0,88039.0,0.28029]
[1766180451509,0.01707628,88057.0,88039.0,0.28029]
[1766180451712,0.00617203,88056.0,88039.0,0.2916486]
[1766180451928,0.00572,88057.0,88039.0,0.2916486]
[1766180452137,0.00572,88057.0,88040.0,0.01135847]
[1766180452780,0.00572,88057.0,88040.0,0.29164847]
[1766180452957,0.5,88050.0,88041.0,0.01135834]
[1766180453162,0.5,88050.0,88043.0,0.01135808]
[1766180453397,0.5,88050.0,88042.0,0.13597821]
[1766180453613,0.5,88050.0,88043.0,0.12462]
[1766180457211,0.5,88050.0,88042.0,0.28029]
[1766180457429,0.5,88050.0,88038.0,0.12486803]
[1766180457797,0.5,88050.0,88038.0,0.28053803]
[1766180457992,0.5,88050.0,88039.0,0.13034]
[1766180458237,0.00055,88039.0,88028.0,0.28029]
[1766180458442,0.00055,88039.0,88029.0,0.00572]
[1766180458617,0.01135808,88043.0,88029.0,0.00572]
[1766180458954,0.00572,88044.0,88029.0,0.00572]
[1766180459114,0.01707795,88044.0,88029.0,0.00572]
[1766180459739,0.01135808,88043.0,88029.0,0.00572]
[1766180460128,0.01135834,88041.0,88029.0,0.00572]
[1766180460326,0.01135821,88042.0,88029.0,0.00572]
[1766180460533,0.01135808,88043.0,88029.0,0.00572]
[1766180460930,0.01135834,88041.0,88029.0,0.00572]
[1766180461134,0.0113586,88039.0,88029.0,0.00572]
[1766180461336,0.00055,88029.0,88024.0,0.00572]
[1766180461873,0.00055,88029.0,88022.0,0.00612]
[1766180462081,0.00055,88029.0,88028.0,6e-08]
[1766180462262,0.01135898,88036.0,88028.0,6e-08]
[1766180462497,0.01135898,88036.0,88022.0,0.00612]
[1766180462913,0.01135911,88035.0,88022.0,0.00612]
[1766180463628,0.01135898,88036.0,88022.0,0.00612]
[1766180463799,0.01135911,88035.0,88022.0,0.00612]
[1766180464231,0.01135924,88034.0,88022.0,0.00612]
[1766180464463,0.01135898,88036.0,88022.0,0.00612]
[1766180464668,0.06251378,88038.0,88022.0,0.00612]
[1766180464669,0.01707873,88038.0,88022.0,0.00612]
[1766180464872,0.01135898,88036.0,88022.0,0.00612]
[1766180465457,0.0113595,88032.0,88018.0,0.0004]
[1766180465758,0.05679881,88030.0,88016.0,0.00572]
[1766180465967,0.01136015,88027.0,88012.0,0.05]
[1766180466187,0.02497088,88026.0,88012.0,0.05]
[1766180466769,0.01361061,88026.0,88012.0,0.05]
[1766180467187,0.01136053,88024.0,88012.0,0.05]
[1766180467389,0.00572,88023.0,88012.0,0.05]
[1766180468032,0.00572,88023.0,88020.0,0.00024818]
[1766180468335,0.00572,88023.0,88020.0,1.8e-07]
[1766180468533,0.01708066,88023.0,88020.0,1.8e-07]
[1766180468805,0.00572,88023.0,88020.0,1.8e-07]
[1766180471743,0.05679301,88039.0,88023.0,0.000247]
[1766180471903,0.02497063,88028.0,88020.0,1.8e-07]
[1766180472108,0.00572,88027.0,88020.0,1.8e-07]
[1766180472485,0.00572,88026.0,88020.0,1.8e-07]
[1766180476584,0.0113604,88025.0,88020.0,1.8e-07]
[1766180476781,0.00572,88026.0,88020.0,1.8e-07]
[1766180478380,0.5,88030.0,88026.0,0.000247]
[1766180478581,0.00517,88028.0,88024.0,0.12883]
[1766180478815,0.5,88030.0,88025.0,0.1401904]
[1766180479018,0.5,88030.0,88027.0,0.01136015]
[1766180479245,0.23849866,88051.0,88034.0,0.06815484]
[1766180479246,0.00572,88039.0,88034.0,0.06815484]
[1766180479444,0.07153,88043.0,88034.0,0.12625]
[1766180480325,0.07153,88043.0,88032.0,0.0113595]
[1766180480326,0.071283,88043.0,88032.0,0.0113595]
[1766180480656,0.071283,88043.0,88032.0,0.1376095]
[1766180480882,0.01135692,88052.0,88032.0,0.1376095]
[1766180480883,0.0681403,88054.0,88034.0,0.28791]
[1766180481036,0.01707679,88053.0,88036.0,0.12625]
[1766180481449,0.00572,88053.0,88036.0,0.13760898]
[1766180481673,0.00572,88053.0,88037.0,0.01135886]
[1766180482055,0.00572,88053.0,88036.0,0.12625]
[1766180482299,0.27035,88052.0,88036.0,0.12625]
[1766180482469,0.27035,88052.0,88036.0,0.13760898]
[1766180483004,0.27035,88052.0,88036.0,0.12625]
[1766180483210,0.28170692,88052.0,88036.0,0.12625]
[1766180483417,0.27035,88052.0,88036.0,0.12625]
[1766180483641,0.27035,88049.0,88032.0,0.0113595]
[1766180483779,0.27035,88049.0,88034.0,0.12625]
[1766180484161,0.00572,88048.0,88034.0,0.12625]
[1766180484360,0.27035,88047.0,88034.0,0.12625]
[1766180484803,0.27035,88047.0,88032.0,0.41416]
[1766180485007,0.27035,88047.0,88032.0,0.28791]
[1766180485214,0.27035,88043.0,88028.0,0.00572]
[1766180485419,0.27607,88043.0,88028.0,0.00572]
[1766180485632,0.27607,88043.0,88028.0,0.13197]
[1766180485884,0.27607,88043.0,88028.0,0.14333002]
[1766180486127,0.27607,88043.0,88029.0,0.12625]
[1766180486426,0.27607,88043.0,88029.0,0.29926989]
[1766180486597,0.27607,88043.0,88030.0,0.12625]
[1766180487251,0.28170834,88041.0,88028.0,0.00572]
[1766180487604,0.27035,88027.0,88009.0,0.01176247]
[1766180487755,0.27035,88025.0,88012.0,0.06136208]
[1766180488797,0.27035,88025.0,88013.0,0.01136195]
[1766180489155,0.27035,88025.0,88014.0,0.01136182]
[1766180489573,0.00572,88026.0,88017.0,0.01136144]
[1766180489780,0.04548,88035.0,88022.0,0.01136079]
[1766180489781,0.00572,88027.0,88022.0,0.01136079]
[1766180489984,0.00572,88027.0,88023.0,0.13761066]
[1766180490187,0.00572,88027.0,88024.0,0.01136053]
[1766180490396,0.27035,88037.0,88025.0,0.12625]
[1766180490647,0.00572,88036.0,88027.0,0.01136015]
[1766180490851,0.00572,88036.0,88025.0,0.1376104]
[1766180491077,0.00572,88036.0,88025.0,0.12625]
[1766180491282,0.27607,88036.0,88025.0,0.12625]
[1766180491439,0.27607,88036.0,88020.0,0.13761105]
[1766180491634,0.27607,88036.0,88021.0,0.01136092]
[1766180491970,0.27607,88036.0,88023.0,0.01136066]
[1766180492526,0.27607,88036.0,88024.0,0.01136053]
[1766180492962,0.27607,88036.0,88025.0,0.0113604]
[1766180493680,0.27607,88036.0,88023.0,0.01136066]
[1766180494114,0.27607,88036.0,88022.0,0.01136079]
[1766180494343,0.05679623,88034.0,88011.0,0.01136221]
[1766180494546,0.27988,88021.0,88012.0,0.05572]
[1766180495164,0.00572,88028.0,88015.0,0.06816995]
[1766180495510,0.00572,88028.0,88016.0,0.12895]
[1766180495511,0.28592,88028.0,88016.0,0.12895]
[1766180501156,0.28592,88028.0,88012.0,0.19603208]
[1766180501547,0.28592,88028.0,88012.0,0.05]
[1766180501754,0.28205,88027.0,88012.0,0.05]
[1766180501862,0.28205,88025.0,88012.0,0.05]
[1766180502696,0.2934104,88025.0,88012.0,0.05]
[1766180502902,0.28235,88023.0,88012.0,0.05]
[1766180503487,0.28235,88023.0,88013.0,0.00572]
[1766180505339,0.28235,88023.0,88012.0,0.05]
[1766180505769,0.28235,88023.0,88013.0,0.00572]
[1766180506183,0.28235,88023.0,88014.0,0.00572]
[1766180511831,0.28235,88023.0,88015.0,0.01136169]
[1766180512084,0.30366152,88035.0,88013.0,0.01361061]
[1766180512281,0.27945,88042.0,88033.0,0.05679685]
[1766180512483,0.00572,88047.0,88034.0,0.29818]
[1766180512716,0.00572,88047.0,88036.0,0.12895]
[1766180515820,0.28596,88047.0,88036.0,0.12895]
[1766180516025,0.000549,88036.0,88034.0,0.29818]
[1766180516237,0.28596,88047.0,88034.0,0.29818]
[1766180516635,0.00572,88047.0,88025.0,0.42713]
[1766180516837,0.01135808,88043.0,88026.0,0.00572]
[1766180516983,0.28612821,88042.0,88026.0,0.00572]
[1766180517183,0.01135834,88041.0,88026.0,0.13467]
[1766180517425,0.27503,88040.0,88026.0,0.13467]
[1766180517598,0.27503,88040.0,88026.0,0.14603027]
[1766180517802,0.27503,88040.0,88027.0,0.14031015]
[1766180518032,0.27503,88040.0,88029.0,0.01135989]
[1766180518241,0.27503,88040.0,88030.0,0.01135976]
[1766180518441,0.27503,88040.0,88031.0,0.00572]
[1766180519374,0.28127,88047.0,88032.0,0.1403095]
[1766180519579,0.28127,88047.0,88034.0,0.12895]
[1766180519933,0.29262757,88047.0,88034.0,0.12895]
[1766180520122,0.28127,88047.0,88034.0,0.12895]
[1766180520322,0.2758,88045.0,88034.0,0.12895]
[1766180520958,0.2758,88045.0,88033.0,0.3039]
[1766180521282,0.28715782,88045.0,88033.0,0.00572]
[1766180521419,0.27605,88044.0,88033.0,0.00572]
[1766180521623,0.01135808,88043.0,88033.0,0.005171]
[1766180521845,0.27605,88042.0,88033.0,0.005171]
[1766180527809,0.02448648,88051.0,88034.0,0.12403]
[1766180528015,0.28323,88050.0,88042.0,0.000549]
[1766180528447,0.00572,88050.0,88045.0,0.12403]
[1766180528603,0.00572,88050.0,88039.0,0.12403]
[1766180529249,0.00572,88050.0,88040.0,0.01135847]
[1766180529405,0.00572,88050.0,88041.0,0.12403]
[1766180529825,0.00572,88050.0,88041.0,0.13538834]
[1766180530635,0.00572,88050.0,88042.0,0.28538]
[1766180530848,0.00572,88050.0,88042.0,0.40941]
[1766180531434,0.00572,88050.0,88043.0,0.01135808]
[1766180531681,0.005171,88050.0,88046.0,0.12403]
[1766180532072,0.005171,88050.0,88044.0,0.28538]
[1766180533372,0.28896602,88059.0,88044.0,0.40941]
[1766180533573,0.00572,88054.0,88044.0,0.40941]
[1766180534341,0.28341,88054.0,88044.0,0.40941]
[1766180535698,0.000549,88044.0,88040.0,0.00572]
[1766180536098,0.27771,88050.0,88040.0,0.00572]
[1766180538091,0.27771,88050.0,88040.0,0.01707847]
[1766180538678,0.27771,88050.0,88041.0,0.01135834]
[1766180539513,0.27771,88050.0,88042.0,0.01135821]
[1766180539719,0.27771,88050.0,88041.0,0.12264]
[1766180539922,0.27771,88050.0,88041.0,0.13399834]
[1766180540326,0.27771,88050.0,88041.0,0.12264]
[1766180540779,0.00572,88054.0,88041.0,0.13399834]
[1766180541055,0.28357,88054.0,88041.0,0.12264]
[1766180541457,0.28357,88054.0,88041.0,0.13399834]
[1766180542045,0.28357,88054.0,88041.0,0.12264]
[1766180546433,0.28357,88054.0,88040.0,0.29812]
[1766180546968,0.28357,88054.0,88041.0,0.12264]
[1766180547220,0.27785,88054.0,88041.0,0.13399834]
[1766180547430,0.28353,88054.0,88042.0,0.01135821]
[1766180547862,0.28353,88054.0,88041.0,0.13399834]
[1766180548292,0.28353,88054.0,88041.0,0.12264]
[1766180548969,0.28353,88054.0,88041.0,0.13399834]
[1766180549529,0.28353,88054.0,88041.0,0.12264]
[1766180549734,0.28353,88054.0,88042.0,0.01135821]
[1766180549936,0.28353,88054.0,88044.0,0.12264]
[1766180550348,0.28353,88054.0,88043.0,0.2924]
[1766180550959,0.03051306,88071.0,88057.0,0.12264]
[1766180551100,0.01361061,88066.0,88061.0,0.12264]
[1766180551301,0.01361061,88066.0,88062.0,0.005131]
[1766180551763,0.01361061,88066.0,88062.0,0.004581]
[1766180552495,0.01306161,88066.0,88062.0,0.004581]
[1766180552707,0.01306161,88066.0,88062.0,0.00568]
[1766180569293,0.28129,88065.0,88058.0,0.00568]
[1766180569433,0.28129,88065.0,88058.0,1e-06]
[1766180569638,0.28129,88065.0,88053.0,0.00568]
[1766180569639,0.28129,88063.0,88053.0,0.00568]
[1766180570467,0.28129,88063.0,88049.0,0.00568]
[1766180571733,0.28129,88063.0,88041.0,0.01135834]
[1766180571734,0.01135576,88061.0,88044.0,0.42653]
[1766180571958,0.28129,88049.0,88033.0,0.01135937]
[1766180572145,0.28129,88047.0,88035.0,0.01135911]
[1766180573176,0.28129,88047.0,88036.0,0.01135898]
[1766180573383,0.28129,88047.0,88035.0,0.01135911]
[1766180573384,0.28129,88047.0,88034.0,0.01135924]
[1766180573781,0.28129,88047.0,88035.0,0.01135911]
[1766180574273,0.28129,88047.0,88034.0,0.01135924]
[1766180575533,0.28129,88047.0,88034.0,0.1272]
[1766180575754,0.28129,88047.0,88034.0,0.13855924]
[1766180576779,0.28129,88047.0,88035.0,0.01135911]
[1766180577008,0.28129,88047.0,88034.0,0.13855924]
[1766180577677,0.28129,88047.0,88034.0,0.19535513]
[1766180577907,0.28129,88047.0,88035.0,0.01135911]
[1766180579099,0.28129,88047.0,88036.0,0.01135898]
[1766180579302,0.28129,88047.0,88035.0,0.01135911]
[1766180579871,0.28129,88047.0,88034.0,0.13855924]
[1766180579872,0.28129,88047.0,88034.0,0.1272]
[1766180580566,0.28129,88047.0,88034.0,0.13288]
[1766180580786,0.28129,88047.0,88036.0,0.1272]
[1766180582009,0.28129,88047.0,88034.0,0.30501]
[1766180582577,0.28129,88047.0,88035.0,0.1272]
[1766180583819,0.28129,88047.0,88035.0,0.13855911]
[1766180583996,0.28129,88047.0,88036.0,0.01135898]
[1766180584365,0.28129,88047.0,88035.0,0.1272]
[1766180586182,0.28129,88047.0,88035.0,0.13855911]
[1766180586398,0.28129,88047.0,88035.0,0.1272]
[1766180586903,0.28129,88047.0,88035.0,0.13855911]